bitfinex-derivatives/quotes_ETHF0:USTF0_20260121
["timestamp","ask_amount","ask_price","bid_price","bid_amount"]
[1769008094534,3.47115317,2995.3,2992.9,3.59928016]
[1769008094535,0.16711,2995.2,2992.9,3.59928016]
[1769008094936,0.16712,2995.0,2992.9,3.59928016]
[1769008095534,0.00413049,2995.3,2993.0,3.63406376]
[1769008095735,0.00413049,2995.3,2993.2,3.63406376]
[1769008095935,0.16708,2995.6,2993.2,3.63406376]
[1769008096135,3.67641822,2996.0,2993.2,3.63406376]
[1769008096136,0.16709,2995.5,2993.2,3.63406376]
[1769008096344,0.31210754,2995.8,2993.2,3.63406376]
[1769008096535,0.1671,2995.3,2993.2,3.63406376]
[1769008096736,0.16711,2995.2,2993.2,3.63406376]
[1769008096936,0.1704328,2995.2,2994.2,0.00501655]
[1769008097639,0.0033228,2995.2,2994.2,0.00501655]
[1769008098335,0.31524028,2996.1,2994.2,0.00501655]
[1769008098541,0.16707,2995.8,2994.2,0.00501655]
[1769008098730,0.16707,2995.8,2994.2,3.63908031]
[1769008099238,0.00315309,2995.8,2994.2,3.63908031]
[1769008099443,3.69761624,2995.8,2994.2,0.00501655]
[1769008099643,0.16709,2995.5,2994.2,0.00501655]
[1769008099844,3.69761624,2995.8,2994.2,0.00501655]
[1769008100240,0.16713,2994.8,2993.0,3.63406376]
[1769008100544,3.69446315,2994.6,2992.5,3.63406376]
[1769008100740,0.16718,2993.9,2992.4,0.00391755]
[1769008101045,0.16719,2993.8,2992.4,0.00391755]
[1769008101341,0.16716,2994.3,2992.4,3.63798131]
[1769008101643,0.00500793,2993.4,2992.4,3.63798131]
[1769008101842,0.0082956,2993.4,2992.4,3.63798131]
[1769008102038,0.16716,2994.2,2992.4,3.63798131]
[1769008102341,0.16712,2994.9,2992.4,3.63798131]
[1769008102537,0.16712,2994.9,2992.7,3.63406376]
[1769008102738,0.16712,2994.9,2992.8,3.63406376]
[1769008102946,5.70738407,2994.4,2992.4,0.00391755]
[1769008103140,0.16716,2994.2,2992.4,0.00391755]
[1769008103340,0.16719,2993.8,2992.4,0.00391755]
[1769008103540,0.1672,2993.6,2992.4,0.00391755]
[1769008104744,0.1672,2993.5,2992.4,0.00391755]
[1769008107443,0.16716,2994.2,2992.4,0.00391755]
[1769008107645,0.16718,2994.0,2992.4,0.00391755]
[1769008107944,3.69688064,2994.4,2992.4,3.63798131]
[1769008107945,0.00241749,2994.4,2992.4,3.63798131]
[1769008108537,0.00241749,2994.4,2992.6,3.63406376]
[1769008109545,0.00241749,2994.4,2992.6,3.80131376]
[1769008109844,0.00241749,2994.4,2992.8,3.63406376]
[1769008110435,3.69446315,2995.7,2993.2,3.63406376]
[1769008110741,3.69446315,2995.7,2993.4,3.63406376]
[1769008110947,0.1671,2995.4,2993.4,3.63406376]
[1769008111141,0.1671,2995.3,2993.4,3.63406376]
[1769008111340,0.16711,2995.1,2993.4,3.63406376]
[1769008111539,0.16966834,2995.1,2993.4,3.63406376]
[1769008111745,0.16713,2994.7,2992.8,3.63406376]
[1769008113348,3.69702149,2995.1,2992.8,3.63406376]
[1769008113349,3.69446315,2994.9,2992.8,3.63406376]
[1769008113549,0.16715,2994.5,2992.8,3.63406376]
[1769008114249,0.16966834,2995.1,2993.4,0.00500793]
[1769008114445,0.00255834,2995.1,2993.4,3.63907169]
[1769008114648,0.16705,2996.1,2993.7,3.80125376]
[1769008114851,0.16705,2996.1,2993.8,3.63406376]
[1769008115053,0.16706,2996.0,2993.8,3.63406376]
[1769008115256,0.16707,2995.9,2993.8,3.63406376]
[1769008115550,0.16707,2995.9,2993.8,5.99286588]
[1769008115738,0.16708,2995.7,2993.8,5.99286588]
[1769008116044,0.16708,2995.6,2993.8,3.63406376]
[1769008116252,0.00289663,2995.7,2993.8,3.63406376]
[1769008116452,0.16709,2995.4,2993.8,3.63406376]
[1769008117047,0.16709,2995.4,2993.4,0.00500793]
[1769008117242,0.00289663,2995.7,2993.4,0.00500793]
[1769008117243,0.00289663,2995.7,2993.9,3.63406376]
[1769008117449,0.00289663,2995.7,2994.1,3.80122376]
[1769008118048,0.00289663,2995.7,2994.1,3.63406376]
[1769008118549,0.00289663,2995.7,2993.5,3.63406376]
[1769008118753,0.00289663,2995.7,2993.5,5.99286588]
[1769008118959,0.00289663,2995.7,2993.6,3.63406376]
[1769008119453,0.00289663,2995.7,2993.7,3.63406376]
[1769008119653,0.00289663,2995.7,2993.8,3.63406376]
[1769008119845,0.00289663,2995.7,2994.3,3.63406376]
[1769008121347,0.16704,2996.4,2994.3,3.63406376]
[1769008121753,0.16706,2996.1,2994.3,3.63406376]
[1769008121950,3.69446315,2996.5,2994.3,3.63406376]
[1769008121951,0.16706,2996.0,2994.3,3.63406376]
[1769008122147,3.69446315,2996.5,2993.8,2.35880212]
[1769008122346,3.69446315,2996.5,2993.7,3.63406376]
[1769008122347,3.69826527,2996.5,2993.7,5.99286588]
[1769008122657,0.16708,2995.7,2993.8,3.63406376]
[1769008123646,0.16709,2995.5,2993.8,3.63406376]
[1769008124756,3.69446315,2995.9,2993.4,2.35880212]
[1769008124757,0.16709,2995.4,2993.4,2.35880212]
[1769008124948,0.1671,2995.3,2993.3,5.99286588]
[1769008125151,0.1671,2995.3,2993.3,3.63406376]
[1769008125351,0.16711,2995.2,2993.3,3.63406376]
[1769008125550,3.48683371,2996.2,2994.0,3.47884668]
[1769008125863,0.16708,2995.6,2994.0,3.47884668]
[1769008126760,0.1671,2995.4,2994.0,0.00500793]
[1769008126967,0.16711,2995.2,2994.0,0.00500793]
[1769008127260,3.48683371,2995.1,2992.9,3.47383875]
[1769008127454,0.16714,2994.6,2992.9,3.47383875]
[1769008128573,0.16718,2993.9,2992.4,0.00391755]
[1769008128862,0.00380126,2993.9,2992.4,3.4777563]
[1769008129559,0.00500793,2993.4,2992.4,3.4777563]
[1769008129759,0.00380126,2993.9,2992.4,3.4777563]
[1769008130960,2.39099502,2995.9,2992.4,3.4777563]
[1769008131263,0.16708,2995.6,2993.4,3.47383875]
[1769008131460,3.48683371,2996.1,2993.9,0.00500793]
[1769008131855,0.16707,2995.9,2993.9,3.47884668]
[1769008132065,0.17124091,2995.9,2993.9,3.47884668]
[1769008132467,0.17124091,2995.9,2993.9,44.27884668]
[1769008132964,0.17124091,2995.9,2993.9,3.47884668]
[1769008133159,0.16707,2995.8,2993.9,3.47884668]
[1769008138563,0.00417091,2995.9,2993.9,3.47884668]
[1769008138766,0.00417091,2995.9,2994.1,3.64551651]
[1769008138961,0.00417091,2995.9,2994.2,3.64551651]
[1769008139561,0.00417091,2995.9,2994.2,3.81267651]
[1769008140064,0.00417091,2995.9,2994.3,3.64551651]
[1769008140970,3.69371713,2997.5,2994.8,3.64551651]
[1769008141167,0.85435186,2997.4,2995.0,3.64551651]
[1769008141475,0.85435186,2997.3,2995.0,3.81263651]
[1769008141661,0.31195627,2997.4,2995.0,3.81263651]
[1769008141865,0.16702,2996.8,2995.0,3.64815306]
[1769008142066,0.00238391,2997.4,2995.0,3.64815306]
[1769008142261,0.16699,2997.3,2995.0,3.64815306]
[1769008142466,0.16699,2997.3,2995.2,3.64551651]
[1769008142667,3.69371713,2996.9,2995.0,0.00263655]
[1769008143067,3.69610104,2997.4,2995.0,3.64815306]
[1769008143376,4.54726519,2997.3,2995.7,0.00500793]
[1769008143579,0.00238391,2997.4,2995.7,0.00500793]
[1769008143970,0.16936391,2997.4,2995.7,0.00500793]
[1769008144476,0.00238391,2997.4,2995.7,0.00500793]
[1769008144686,3.69610104,2997.4,2995.7,0.00500793]
[1769008144877,0.16703,2996.5,2995.7,0.00500793]
[1769008145368,5.70663805,2997.0,2995.7,0.00500793]
[1769008145369,0.167,2997.2,2995.7,0.00500793]
[1769008145572,0.00238391,2997.4,2995.7,0.00500793]
[1769008145766,0.16701,2997.0,2995.7,0.00500793]
[1769008146475,2.38804945,3000.2,2996.4,2.11700133]
[1769008146676,0.16688,2999.3,2997.2,2.11700133]
[1769008146869,3.86062713,2998.7,2996.3,2.36215534]
[1769008147071,3.86062713,2998.7,2994.9,0.85186279]
[1769008147072,0.16695,2998.0,2995.8,2.36215534]
[1769008147277,3.86067713,2997.9,2995.5,4.39584788]
[1769008147477,5.55071713,2998.4,2996.3,0.48376739]
[1769008147676,3.69371713,2998.3,2996.4,0.48376739]
[1769008147871,3.69371713,2998.3,2996.3,0.00427998]
[1769008147872,3.69371713,2997.8,2996.5,0.48376739]
[1769008148077,3.69371713,2997.6,2996.3,0.00427998]
[1769008148277,3.69371713,2996.8,2994.7,2.36215534]
[1769008148476,3.69371713,2996.8,2994.4,2.36215534]
[1769008148880,3.86073713,2996.7,2994.3,2.36215534]
[1769008149083,3.69371713,2997.3,2994.6,1.93158452]
[1769008149284,3.86070713,2997.3,2994.8,1.93158452]
[1769008149684,3.86070713,2997.3,2995.7,0.00500793]
[1769008150079,4.20585103,2997.3,2995.7,0.00500793]
[1769008150883,3.86892092,2998.1,2995.7,0.00500793]
[1769008150884,3.69371713,2997.9,2995.7,2.02052358]
[1769008151480,0.35076659,2997.9,2995.7,2.02052358]
[1769008151786,5.70663805,2997.0,2995.7,0.00500793]
[1769008151972,3.86072713,2996.9,2994.6,2.36540809]
[1769008152374,0.00500793,2996.6,2994.6,4.38092374]
[1769008152588,0.00500793,2996.6,2994.6,2.0187684]
[1769008152978,0.00500793,2996.6,2994.7,4.42461501]
[1769008153183,0.00500793,2996.6,2995.0,2.06245967]
[1769008153692,0.00500793,2996.6,2994.7,2.36215534]
[1769008153982,0.00500793,2996.6,2994.6,2.95175541]
[1769008153983,3.69371713,2996.5,2994.6,0.00325275]
[1769008154175,3.69371713,2996.1,2994.6,0.00325275]
[1769008154380,3.86077713,2996.0,2994.6,0.00325275]
[1769008154582,3.86078713,2995.9,2994.6,0.00325275]
[1769008154783,3.86081713,2995.3,2993.3,2.36215534]
[1769008154989,3.86081713,2995.3,2993.2,2.06754657]
[1769008155386,3.69371713,2995.9,2993.3,4.42970191]
[1769008155592,0.00500793,2994.5,2993.4,2.07333088]
[1769008155788,0.00500793,2994.5,2993.4,0.00363906]
[1769008160189,0.00500793,2994.5,2993.5,0.43724167]
[1769008160387,0.00500793,2994.5,2992.4,7.01705277]
[1769008160388,3.92857271,2994.3,2992.4,7.01705277]
[1769008160588,0.16719,2993.7,2992.0,2.36215534]
[1769008160796,0.34517464,2994.3,2991.6,4.89280591]
[1769008160797,0.16719,2993.6,2991.6,4.89280591]
[1769008161088,0.16719,2993.6,2991.6,2.53065057]
[1769008161401,0.1700924,2993.6,2991.6,2.53372466]
[1769008161693,0.00500793,2992.9,2991.6,0.00307409]
[1769008161895,0.17223793,2992.9,2991.6,0.00307409]
[1769008162598,0.00500793,2992.9,2991.6,0.00307409]
[1769008165095,0.00500793,2992.9,2991.6,3.59697268]
[1769008165301,0.0029024,2993.6,2992.0,0.00500793]
[1769008165799,0.0029024,2993.6,2992.0,3.59389859]
[1769008166390,0.0029024,2993.6,2992.0,3.76117859]
[1769008166591,0.16714,2994.5,2992.2,3.75616066]
[1769008167396,3.92856271,2994.7,2992.4,3.73483934]
[1769008167599,3.93270159,2994.7,2992.4,3.73483934]
[1769008167902,3.93270159,2994.7,2992.5,40.8]
[1769008168202,0.17127888,2994.7,2992.6,3.56757934]
[1769008168796,3.93270159,2994.7,2992.6,3.56757934]
[1769008169003,3.93270159,2994.7,2992.5,0.16725]
[1769008169497,3.76556159,2994.7,2992.1,40.8]
[1769008169794,3.76142271,2994.3,2992.1,40.8]
[1769008169993,3.92858271,2994.3,2992.0,3.54755419]
[1769008170199,0.16716,2994.3,2992.0,3.71483419]
[1769008170807,3.92858271,2994.3,2992.0,3.71483419]
[1769008171006,3.92858271,2994.2,2992.0,3.71483419]
[1769008171603,3.76142271,2994.0,2992.0,3.71483419]
[1769008171805,3.92859271,2994.0,2992.8,0.00500793]
[1769008172100,3.93270159,2994.7,2992.8,0.00500793]
[1769008172307,3.76556159,2994.7,2992.8,0.00500793]
[1769008172899,0.16715,2994.5,2992.8,0.00500793]
[1769008173206,0.00413888,2994.7,2992.9,3.92405077]
[1769008173404,0.00413888,2994.7,2993.0,3.92405077]
[1769008173601,0.16707,2995.8,2993.1,44.72405077]
[1769008173807,0.16707,2995.8,2993.7,3.52245886]
[1769008174111,3.76142271,2995.9,2993.8,4.08709189]
[1769008174411,4.2774933,2995.9,2993.9,0.39715689]
[1769008174612,4.1104233,2995.9,2994.0,0.39715689]
[1769008174813,4.11345509,2995.9,2993.9,0.00347521]
[1769008175110,0.00500793,2995.2,2993.9,0.00347521]
[1769008175307,3.76643064,2995.2,2993.9,0.00347521]
[1769008176402,0.00500793,2995.2,2993.9,0.00347521]
[1769008176612,0.00500793,2995.2,2994.0,0.3977333]
[1769008176913,0.00500793,2995.2,2994.1,0.3977653]
[1769008177111,0.00500793,2995.2,2994.2,0.39778329]
[1769008177311,0.00303179,2995.9,2994.3,0.39778329]
[1769008177505,0.00303179,2995.9,2994.4,0.39778329]
[1769008177711,3.7644545,2995.9,2994.5,0.39778329]
[1769008177907,3.7644545,2995.9,2994.6,0.39778329]
[1769008178116,3.92850271,2995.7,2993.9,0.00347521]
[1769008178412,3.92850271,2995.7,2994.0,0.3982149]
[1769008178603,3.92851271,2995.5,2994.1,0.3982149]
[1769008178803,3.92852271,2995.3,2993.9,0.00347521]
[1769008179016,3.76142271,2995.2,2992.7,3.6597563]
[1769008179212,3.76142271,2995.2,2992.9,3.6597463]
[1769008179417,3.76142271,2994.9,2993.0,0.39857398]
[1769008179601,0.00500793,2994.3,2993.1,0.39857398]
[1769008179807,0.00500793,2994.3,2993.2,0.39857398]
[1769008180005,0.00500793,2994.3,2993.2,0.00369417]
[1769008180502,3.76643064,2994.3,2992.0,2.52943534]
[1769008180707,3.76643064,2994.3,2992.1,0.39931199]
[1769008180917,3.76643064,2994.3,2992.2,0.39931199]
[1769008181215,0.04661429,2993.3,2992.3,0.39931199]
[1769008181413,0.05090246,2993.3,2992.4,0.39982987]
[1769008181709,0.05090246,2993.3,2992.5,0.39982987]
[1769008182012,0.05090246,2993.3,2992.6,0.39982987]
[1769008182212,0.04661429,2993.0,2992.7,0.39993371]
[1769008182510,0.00500793,2994.3,2992.8,0.40014705]
[1769008182716,0.00500793,2994.3,2992.9,0.40014705]
[1769008182910,0.00500793,2994.3,2993.0,0.40014705]
[1769008183101,0.00500793,2994.3,2993.1,0.40014705]
[1769008183306,0.00500793,2994.3,2993.2,0.40002318]
[1769008183505,0.00857959,2994.3,2992.3,0.00329896]
[1769008183705,0.00857959,2994.3,2992.4,0.40055033]
[1769008183913,0.00857959,2994.3,2992.5,0.40055033]
[1769008184105,0.00857959,2994.3,2992.6,3.85494001]
[1769008184306,7.16536611,2996.2,2992.5,2.36215534]
[1769008184307,0.16708,2995.7,2993.2,5.97517543]
[1769008184512,1.858,2996.0,2993.2,5.97517543]
[1769008184513,3.76142271,2995.6,2993.3,0.40055033]
[1769008184812,3.76142271,2995.6,2993.4,0.40055033]
[1769008185015,3.76142271,2995.0,2993.5,0.40055033]
[1769008185211,3.92854271,2995.0,2993.6,0.40055033]
[1769008185412,3.76506956,2995.0,2993.7,0.40055033]
[1769008185718,3.76506956,2995.0,2993.8,0.40055033]
[1769008185915,3.85590215,2994.7,2992.8,2.36215534]
[1769008186111,3.85591215,2994.6,2992.9,0.40058908]
[1769008186317,3.85591215,2994.6,2993.0,0.40058908]
[1769008186517,3.85591215,2994.6,2993.1,0.40058908]
[1769008186715,3.85591215,2994.6,2993.2,0.40058908]
[1769008186917,3.85591215,2994.6,2993.3,0.40058908]
[1769008187118,3.85591215,2994.6,2993.4,0.40058908]
[1769008187320,3.85591215,2994.6,2993.5,0.40058908]
[1769008187619,3.85591215,2994.6,2992.7,2.36215534]
[1769008187620,0.00364685,2995.0,2993.6,0.40058908]
[1769008187814,0.00364685,2995.0,2993.7,0.40058908]
[1769008188015,0.00364685,2995.0,2993.8,0.40058908]
[1769008188212,0.00364685,2995.0,2993.9,0.40058908]
[1769008188409,0.00364685,2995.0,2993.1,5.9945524]
[1769008188410,0.00364685,2995.0,2994.0,0.40058908]
[1769008188609,0.00364685,2995.0,2992.6,4.12790372]
[1769008188610,0.00364685,2995.0,2994.1,0.4007579]
[1769008188815,3.68877215,2996.5,2994.2,3.86593496]
[1769008189019,3.68877215,2996.5,2994.3,3.86593496]
[1769008189218,3.68877215,2996.5,2994.4,0.4007579]
[1769008189420,3.68877215,2996.5,2994.5,0.4007579]
[1769008189617,3.68877215,2996.5,2994.6,0.4007579]
[1769008189812,4.0300736,2996.5,2994.7,0.4007579]
[1769008190018,4.0300736,2996.5,2994.8,0.4007579]
[1769008190219,4.0300736,2996.5,2994.9,0.4007579]
[1769008190220,0.16704,2996.3,2994.9,0.4007579]
[1769008190418,3.85581215,2996.3,2995.0,0.4007579]
[1769008190614,3.85581215,2996.3,2994.7,0.0032168]
[1769008190814,3.85581215,2996.3,2994.8,0.39999728]
[1769008191115,3.69378008,2995.8,2994.9,0.39999728]
[1769008191327,3.69378008,2995.8,2994.7,0.0032168]
[1769008191509,0.00500793,2995.8,2994.7,0.0032168]
[1769008191709,0.00500793,2995.8,2994.8,0.40011068]
[1769008191909,0.00500793,2995.8,2994.7,0.0032168]
[1769008192313,0.00500793,2995.8,2994.8,0.40020602]
[1769008192513,0.00500793,2995.8,2994.7,0.0032168]
[1769008192722,0.00500793,2995.8,2994.8,0.40034534]
[1769008192922,3.86085008,2995.8,2994.7,0.0032168]
[1769008193133,3.85586215,2995.4,2993.6,2.36215534]
[1769008193323,3.85586215,2995.4,2993.7,0.40047003]
[1769008193625,3.68877215,2995.1,2993.8,0.40047003]
[1769008193822,3.68877215,2994.9,2992.9,2.36215534]
[1769008194123,3.68877215,2994.9,2992.9,2.36514359]
[1769008194319,3.85589215,2994.9,2993.0,2.36215534]
[1769008194519,1.857,2995.3,2992.9,0.00298825]
[1769008194520,3.85591215,2994.5,2992.9,0.00298825]
[1769008194714,0.00500793,2994.2,2992.9,0.00298825]
[1769008195021,0.00753846,2994.2,2992.9,0.00298825]
[1769008198328,3.67925569,2993.9,2992.9,0.00298825]
[1769008198631,0.00753846,2994.2,2991.9,2.36215534]
[1769008198632,0.16721,2993.4,2991.9,2.36215534]
[1769008198829,3.67928569,2993.3,2991.5,2.36215534]
[1769008199218,0.16723,2993.1,2991.4,2.36215534]
[1769008199516,3.51207569,2993.3,2991.4,2.36215534]
[1769008199517,3.51207569,2993.3,2991.4,2.36588066]
[1769008199728,0.00500793,2992.6,2991.4,2.36588066]
[1769008199927,0.00500793,2992.6,2991.4,5.93146197]
[1769008200329,0.00500793,2992.6,2991.4,0.00372532]
[1769008201225,3.68433362,2992.6,2991.4,0.00372532]
[1769008201425,0.00500793,2992.6,2991.4,0.00372532]
[1769008201625,3.51207569,2993.8,2991.7,3.73788924]
[1769008201836,3.67926569,2993.7,2991.7,0.00500793]
[1769008202230,0.34926329,2994.0,2991.9,3.73287131]
[1769008202533,3.51207569,2994.0,2991.9,3.73287131]
[1769008202727,3.85001152,2994.0,2992.0,3.56558131]
[1769008203133,3.51207569,2994.6,2992.0,3.73286131]
[1769008203327,3.51207569,2994.6,2992.1,5.92773665]
[1769008203636,0.34613966,2994.4,2992.2,3.56558131]
[1769008204036,0.34613966,2994.4,2992.2,5.92773665]
[1769008204234,3.51207569,2995.2,2992.3,3.56558131]
[1769008204536,3.67918569,2995.2,2992.8,3.56558131]
[1769008204935,0.16711,2995.1,2992.8,3.56558131]
[1769008205240,0.3498125,2994.9,2992.8,3.56558131]
[1769008205542,0.3498125,2994.9,2992.8,5.92773665]
[1769008205740,3.51207569,2995.2,2993.2,3.57058924]
[1769008205933,0.16707,2995.8,2993.2,3.57058924]
[1769008205934,0.33941183,2995.3,2993.3,5.92773665]
[1769008206238,3.51207569,2995.3,2993.3,5.92773665]
[1769008206437,3.51207569,2995.3,2993.5,2.36215534]
[1769008206630,0.16708,2995.7,2993.6,3.56558131]
[1769008206826,0.16947392,2995.7,2993.7,5.92773665]
[1769008207031,0.16947392,2995.7,2993.7,3.56558131]
[1769008207227,3.68154961,2995.7,2993.6,0.00386933]
[1769008207436,3.67916569,2995.5,2993.6,0.00386933]
[1769008207633,0.34424754,2995.7,2993.6,3.56945064]
[1769008208240,0.34424754,2995.7,2993.6,5.93160598]
[1769008208738,0.00239392,2995.7,2993.8,3.73276131]
[1769008208932,0.00239392,2995.7,2993.6,0.00386933]
[1769008208933,0.00239392,2995.7,2993.9,5.92773665]
[1769008209142,0.00239392,2995.7,2994.4,3.73273131]
[1769008209337,0.00239392,2995.7,2994.4,6.09488665]
[1769008209946,0.00239392,2995.7,2994.4,3.73273131]
[1769008210541,3.67906569,2997.3,2994.5,3.56558131]
[1769008210849,3.67906569,2997.3,2994.9,3.73270131]
[1769008211251,3.67906569,2997.3,2995.6,0.00500793]
[1769008211648,3.68201122,2997.3,2995.6,0.00500793]
[1769008211850,4.05932497,2997.3,2995.6,0.00500793]
[1769008212547,3.51207569,2997.1,2995.6,0.00500793]
[1769008212746,3.67907569,2997.1,2995.6,0.00500793]
[1769008213348,3.67908569,2996.9,2995.6,0.00500793]
[1769008214253,3.51207569,2996.7,2993.8,2.36215534]
[1769008214556,3.51708362,2996.5,2994.1,40.8]
[1769008214848,3.51708362,2996.5,2993.7,3.73277131]
[1769008214849,3.51207569,2996.3,2993.7,3.73277131]
[1769008215040,0.00500793,2996.5,2994.3,3.56558131]
[1769008215242,0.00500793,2996.5,2994.9,3.73270131]
[1769008215846,0.00500793,2996.5,2994.5,3.7185657]
[1769008216041,3.54900562,2996.5,2994.4,40.8]
[1769008216450,3.71104769,2996.2,2994.0,3.7185657]
[1769008217051,3.54399769,2996.2,2993.7,5.04019]
[1769008217252,3.54399769,2995.8,2993.6,0.00386933]
[1769008217451,3.54399769,2995.6,2993.6,0.00386933]
[1769008218049,0.00500793,2994.9,2993.6,0.00386933]
[1769008218250,0.00823452,2994.9,2993.6,0.00386933]
[1769008219253,3.54399769,2994.8,2993.6,0.00386933]
[1769008219856,3.54399769,2994.8,2991.8,7.81850266]
[1769008219857,3.71113769,2994.6,2991.9,6.23844529]
[1769008220350,3.71113769,2994.6,2991.9,3.87628995]
[1769008220558,3.71114769,2994.4,2991.9,3.87628995]
[1769008220857,3.71114769,2994.4,2991.9,3.87921319]
[1769008221048,3.71114769,2994.4,2992.0,40.8]
[1769008221247,3.71114769,2994.4,2992.1,3.73065575]
[1769008221755,0.16715,2994.4,2992.1,3.89793575]
[1769008223055,3.71114769,2994.4,2992.1,3.89793575]
[1769008225357,0.00823452,2994.9,2993.2,0.16722]
[1769008225558,0.00823452,2994.9,2993.2,3.70581037]
[1769008225759,0.00823452,2994.9,2993.6,0.16719]
[1769008226358,0.00823452,2994.9,2993.3,3.70581037]
[1769008226962,0.00823452,2994.9,2993.4,40.8]
[1769008227159,0.00823452,2994.9,2993.4,44.53065575]
[1769008227362,0.00823452,2994.9,2993.5,3.89785575]
[1769008227763,0.00823452,2994.9,2993.5,0.1672]
[1769008228260,0.00823452,2994.9,2993.5,3.89785575]
[1769008228765,0.00823452,2994.9,2992.9,2.36215534]
[1769008228958,3.55223221,2994.9,2992.8,3.89789575]
[1769008229363,3.55223221,2994.9,2992.9,40.8]
[1769008230965,0.00823452,2994.9,2993.0,3.73065575]
[1769008231264,0.00823452,2994.9,2993.3,3.89786575]
[1769008231469,0.00823452,2994.9,2993.4,0.1672]
[1769008231869,0.00823452,2994.9,2993.4,2.52935534]
[1769008232170,0.00823452,2994.9,2993.4,0.1672]
[1769008232768,0.00823452,2994.9,2993.5,4.947]
[1769008233363,0.00823452,2994.9,2993.6,3.73065575]
[1769008234071,3.55223221,2994.9,2993.0,2.36215534]
[1769008234260,0.16715,2994.5,2992.9,2.36215534]
[1769008234462,3.55223221,2994.9,2992.4,4.12790372]
[1769008234463,0.16717,2994.1,2992.4,2.36215534]
[1769008234666,0.16718,2993.9,2992.3,2.36215534]
[1769008234873,3.71119769,2993.6,2991.9,0.00292324]
[1769008235681,0.00500793,2993.0,2991.9,0.00292324]
[1769008235870,3.54399769,2994.2,2991.9,3.73357899]
[1769008236070,3.54399769,2994.2,2992.1,2.36215534]
[1769008236466,1.7911,2994.1,2992.1,2.36215534]
[1769008236867,3.54399769,2993.8,2991.9,2.36507858]
[1769008237074,3.54399769,2993.8,2991.9,0.00292324]
[1769008237373,0.16718,2993.9,2991.9,3.73357899]
[1769008237571,0.16718,2993.9,2991.9,6.09573433]
[1769008237770,3.71117769,2993.9,2992.6,0.00500793]
[1769008238676,3.54399769,2993.7,2992.6,0.00500793]
[1769008238971,3.71118769,2993.7,2991.9,0.00292324]
[1769008239172,0.00500793,2993.5,2991.9,0.00292324]
[1769008239975,3.54900562,2993.5,2991.9,0.00292324]
[1769008240470,3.54399769,2993.3,2991.9,0.00292324]
[1769008240774,3.54399769,2993.1,2991.9,0.00292324]
[1769008241674,3.54399769,2992.8,2990.8,5.310658]
[1769008241877,3.54399769,2992.8,2990.9,2.36215534]
[1769008242566,3.54399769,2992.8,2990.8,43.16215534]
[1769008242769,3.54686884,2992.8,2990.8,40.80370825]
[1769008242974,3.54686884,2992.8,2990.8,43.16586359]
[1769008243473,3.54399769,2992.4,2990.8,0.00370825]
[1769008243875,3.71126769,2992.3,2990.8,0.00370825]
[1769008244379,0.00500793,2991.9,2990.8,0.00370825]
[1769008251777,0.00500793,2991.9,2990.8,44.47989047]
[1769008252173,0.00287115,2992.8,2990.9,3.67618222]
[1769008252380,0.00287115,2992.8,2991.5,0.16731]
[1769008252680,3.67248269,2994.0,2992.2,0.16727]
[1769008252873,3.67248269,2994.0,2992.2,5.19527]
[1769008253381,3.67248269,2994.6,2992.6,0.16725]
[1769008253585,1.7936076,2994.1,2992.6,3.84343222]
[1769008254085,1.7936076,2994.1,2992.7,5.032]
[1769008256285,1.7936076,2994.1,2993.1,0.00500793]
[1769008256486,5.46609029,2994.1,2993.1,0.00794097]
[1769008257079,3.67248269,2994.0,2992.3,40.8]
[1769008257279,3.67248269,2994.0,2992.0,6.20561756]
[1769008257486,3.67749062,2993.9,2992.0,3.84346222]
[1769008257688,3.67248269,2993.7,2991.5,2.36215534]
[1769008257981,3.83968269,2993.5,2991.3,7.39015534]
[1769008258182,3.83968269,2993.5,2991.5,0.00252658]
[1769008258387,3.83968269,2993.5,2991.5,3.58854316]
[1769008258588,3.67248269,2993.5,2991.6,3.58601658]
[1769008258786,3.67248269,2993.5,2991.7,0.1673]
[1769008258978,3.67248269,2993.5,2991.5,0.00252658]
[1769008259284,3.83968269,2993.5,2991.5,0.00252658]
[1769008259487,3.83968269,2993.5,2991.6,2.52945534]
[1769008259488,3.67248269,2993.5,2991.6,2.52945534]
[1769008259686,3.67248269,2993.5,2991.7,2.36215534]
[1769008260190,0.00500793,2993.9,2991.7,6.11547192]
[1769008260390,3.49757194,2993.9,2991.7,6.11547192]
[1769008260592,3.49757194,2993.9,2991.7,2.52945534]
[1769008260786,3.49757194,2993.9,2991.5,0.00252658]
[1769008260787,3.49256401,2993.7,2991.6,2.36215534]
[1769008260991,0.00500793,2993.9,2991.6,3.58601658]
[1769008261193,0.00500793,2993.9,2992.1,0.16728]
[1769008261590,3.49256401,2993.6,2991.7,2.36215534]
[1769008261794,3.49256401,2993.6,2991.5,0.00252658]
[1769008261991,3.65979401,2992.9,2991.5,0.00252658]
[1769008263897,3.49256401,2993.4,2991.5,0.00252658]
[1769008264287,3.65977401,2993.4,2991.5,0.00252658]
[1769008264889,3.49256401,2992.8,2991.5,0.00252658]
[1769008265488,3.49256401,2993.5,2991.5,0.00252658]
[1769008265693,0.00500793,2993.9,2991.6,3.58601658]
[1769008265895,0.00500793,2993.9,2992.0,0.16728]
[1769008266091,3.49256401,2993.7,2991.5,2.36468192]
[1769008266287,0.00500793,2993.9,2991.6,0.1673]
[1769008266288,3.49256401,2993.5,2991.6,0.1673]
[1769008267089,3.65976401,2993.5,2991.6,0.1673]
[1769008267391,3.65976401,2993.5,2991.6,2.52945534]
[1769008267695,3.65976401,2993.5,2991.6,0.1673]
[1769008267891,3.49256401,2993.5,2991.9,0.16728]
[1769008268094,0.00500793,2993.9,2991.9,5.94817192]
[1769008268395,0.00500793,2993.9,2992.4,0.16726]
[1769008269094,3.49757194,2993.9,2992.1,40.8]
[1769008269294,3.49757194,2993.9,2992.1,44.38601658]
[1769008269295,0.00500793,2993.9,2992.1,44.38601658]
[1769008270498,3.49757194,2993.9,2992.2,0.16727]
[1769008271101,3.49757194,2993.9,2992.2,2.52942534]
[1769008271903,0.00500793,2993.9,2992.6,2.36215534]
[1769008272598,3.49757194,2993.9,2991.6,4.12790372]
[1769008272790,3.49256401,2993.5,2991.5,3.58854316]
[1769008272998,0.00500793,2993.9,2992.0,3.58601658]
[1769008273298,0.00500793,2993.9,2991.8,2.01324778]
[1769008273299,0.00500793,2993.9,2992.4,0.16726]
[1769008273497,0.00500793,2993.9,2991.8,42.81324778]
[1769008273698,0.00500793,2993.9,2992.0,3.58601658]
[1769008274090,3.49757194,2993.9,2991.5,0.00252658]
[1769008274300,3.49256401,2993.7,2991.6,5.06]
[1769008274604,3.49256401,2993.7,2991.7,5.064]
[1769008274903,3.65975401,2993.6,2991.7,5.064]
[1769008275311,0.1672,2993.5,2991.5,40.96983658]
[1769008275504,3.79635472,2993.3,2991.5,0.00252658]
[1769008275801,3.62914472,2993.1,2991.5,0.00252658]
[1769008276002,3.62914472,2993.1,2991.5,5.07652658]
[1769008276195,3.79636472,2993.1,2991.5,5.07652658]